Cogmind - Beta 16 @@@ ROGUE MODE // 2026.01.24 @ 23:11:39 Player: Bowster Result: Destroyed by P-70 Sage with Tesla Rifle Performance ------------- Evolutions (6) 3000 Regions Visited (8) 1600 Robots Destroyed (30) 150 Value Destroyed (1371) 1371 Prototype IDs (0) 0 Alien Tech Used (0) 0 Bonus (0) 0 TOTAL SCORE: 6121 Bonus ------- None Cogmind --------- Core Integrity 0/1150 Matter 295/300 Energy 100/100 System Corruption 12% Temperature Cool (0) Movement Core (50) Location -4/Factory Parts ------- > --- POWER (3) -------- (None) > --- PROPULSION (5) --- (None) > --- UTILITY (8) ------ (None) > --- WEAPON (3) ------- (None) > --- INVENTORY (5) ---- Large Matter Pod (134) Advanced Signal Interpreter Peak State ------------ > --- POWER ------------ Light Angular Momentum Engine Neutrino Core > --- PROPULSION ------- Flexi-carbon Leg Flexi-carbon Leg Flexi-carbon Leg Flexi-carbon Leg VTOL Module > --- UTILITY ---------- Power Amplifier Small Storage Unit Compact Battery Advanced Terrain Scanner Advanced Terrain Scan Processor Core Analyzer Reaction Control System Layered Light Armor Plating > --- WEAPON ----------- Wave Gun Plasma Cannon Heavy Shock Bomb Launcher > --- INVENTORY -------- Large Matter Pod Matter Compressor Advanced Sensor Array Advanced Signal Interpreter Mass Driver [Rating: 80] Favorites ----------- Power Neutrino Core Engine Improved Ion Engine Power Core Neutrino Core Propulsion Aluminum Leg Treads Improved Treads Leg Aluminum Leg Flight Unit VTOL Module Utility Small Storage Unit Device Advanced Heat Sink Storage Small Storage Unit Processor Advanced Terrain Scan Processor Hackware Improved Hacking Suite Protection Layered Light Armor Plating Weapon Heavy Ion Cannon Energy Gun Wave Gun Energy Cannon Heavy Ion Cannon Ballistic Gun Assault Rifle Ballistic Cannon Mass Driver Launcher Heavy Shock Bomb Launcher Special Weapon Improved Plasma Cutter Build | -11 -10 -10 -9 -6 -5 -5 -5 -4 ------- Run | Yrd Mat Sub Scr Fac Fac Upp Upp Fac Slots Evolved 12 | . . . . 8 2 . . 2 Power 2 | . . . . 1 . . . 1 Propulsion 3 | . . . . 2 1 . . . Utility 6 | . . . . 5 . . . 1 Weapon 1 | . . . . . 1 . . . Parts Attached 72 | 6 4 3 4 5 15 14 10 11 Power 11 | 1 1 . . 1 3 3 1 1 Engine 4 | 1 1 . . 1 . 1 . . Core 7 | . . . . . 3 2 1 1 Reactor . | . . . . . . . . . Propulsion 19 | 2 . 1 1 1 3 5 4 2 Treads 5 | . . . . . 3 . . 2 Leg 11 | 2 . 1 1 1 . 2 4 . Wheel . | . . . . . . . . . Hover . | . . . . . . . . . Flight 3 | . . . . . . 3 . . Utility 25 | 1 . 1 1 3 6 3 4 6 Device 14 | . . 1 . 1 5 1 3 3 Storage 4 | 1 . . . . . 1 . 2 Processor 4 | . . . 1 . 1 1 . 1 Hackware 2 | . . . . 2 . . . . Protection 1 | . . . . . . . 1 . Artifact . | . . . . . . . . . Weapon 17 | 2 3 1 2 . 3 3 1 2 Energy Gun 6 | 2 2 . . . . 2 . . Energy Cannon 4 | . . . 2 . 2 . . . Ballistic Gun 1 | . 1 . . . . . . . Ballistic Cannon 1 | . . . . . . . . 1 Launcher 3 | . . 1 . . . 1 1 . Special Weapon 2 | . . . . . 1 . . 1 Impact Weapon . | . . . . . . . . . Slashing Weapon . | . . . . . . . . . Piercing Weapon . | . . . . . . . . . Special Melee Weapon . | . . . . . . . . . Unidentified Prototypes . | . . . . . . . . . Corrupted Parts 5 | . . . . . . 1 4 . System Corruption 41 | . . . . . . 3 38 . Parts Lost 49 | . 1 . . . 3 18 4 23 Power 7 | . . . . . . 3 1 3 Propulsion 16 | . . . . . 2 6 1 7 Utility 17 | . . . . . 1 6 2 8 Weapon 9 | . 1 . . . . 3 . 5 Highest Loss Streak 11 | . 1 . . . 2 7 3 11 To Critical Strikes . | . . . . . . . . . Average Backups 6 | . 1 6 7 6 7 6 5 4 Power 1 | . 1 2 2 1 1 1 . . Propulsion . | . . 1 2 . . . . . Utility 2 | . . 1 1 1 2 3 2 3 Weapon 2 | . . 2 2 2 3 2 2 . Tool/Special . | . . . . . . . . . Unused Backups 6 | . . . . . 4 . . 2 Power 1 | . . . . . 1 . . . Propulsion . | . . . . . . . . . Utility 3 | . . . . . 1 . . 2 Weapon 2 | . . . . . 2 . . . Tool/Special . | . . . . . . . . . Average Slot Usage (%) 81 | . 85 95 86 74 97 78 65 68 Engine 6 | . 14 14 14 12 3 . 5 3 Core 4 | . . . . . 7 9 3 2 Treads 2 | . . . . . 9 4 . 1 Leg 17 | . 28 28 28 25 17 9 9 13 Flight 1 | . . . . . . 1 12 3 Device 8 | . . 9 . 3 14 13 4 11 Storage 8 | . 14 14 14 6 5 5 4 9 Processor 7 | . . . 13 6 6 7 5 8 Hackware 3 | . . . . 4 11 5 1 . Energy Gun 4 | . 21 24 . . . 1 5 2 Energy Cannon 10 | . . . 14 13 16 13 . 2 Peak Build Rating 80 | 6 9 11 16 35 65 65 66 80 Average Rating 39 | 4 6 10 12 25 58 53 48 56 On Entrance 27 | . 6 9 11 16 35 65 36 66 Avg Prop Armor Cover (%) 6 | . . . . . 6 8 3 2 Naked Turns 64 | . . . . . . . . 64 Heaviest Build 62 | 10 18 20 28 34 62 62 49 57 Greatest Support 80 | 20 20 20 23 43 76 53 60 80 Greatest Overweight (x) 7 | . . . 1 . 1 7 5 3 Average Overweight (x) . | . . . . . . 1 . . Largest Inventory Capacity 10 | 8 8 8 8 8 8 10 10 8 Average Capacity 7 | 6 8 8 8 8 8 8 8 7 Most Carried 8 | 1 5 7 8 8 8 8 8 6 Average Carried 6 | . 1 6 7 6 7 6 5 4 Final Capacity 10 | 8 8 8 8 8 8 10 8 5 Final Carried 8 | 1 5 7 7 8 8 8 6 2 Class Distribution -------------------- 38% | Mutant 25% | Scavenger-Skirmisher 11% | Scavenger-Mutant 10% | Hacker-Skirmisher 5% | Tank 3% | Derelict-Skirmisher 3% | Hacker-Gunner Dominant Class ---------------- Mutant | -10/Materials Mutant | -10/Subcaves Mutant | -9/Scraptown Mutant | -6/Factory Hacker-Skirmisher | -5/Factory Scavenger-Skirmisher | -5/Upper Caves Scavenger-Mutant | -5/Upper Caves Derelict-Skirmisher | -4/Factory Resources | -11 -10 -10 -9 -6 -5 -5 -5 -4 ----------- Run | Yrd Mat Sub Scr Fac Fac Upp Upp Fac Matter Collected 1879 | 201 86 57 280 . 335 494 289 137 Remotely . | . . . . . . . . . Salvage Created 1435 | . 142 93 . . 777 256 133 34 Parts 56 | . 9 8 . . 23 9 7 . Haulers Intercepted . | . . . . . . . . . Recyclers Shooed . | . . . . . . . . . Parts Field Recycled . | . . . . . . . . . Retrieved Matter . | . . . . . . . . . Parts Self-Destructed 7 | . . . . . . 7 . . Prevented 10 | . . . . . . 3 7 . Parts Restored . | . . . . . . . . . Kills | -11 -10 -10 -9 -6 -5 -5 -5 -4 ------- Run | Yrd Mat Sub Scr Fac Fac Upp Upp Fac Combat Hostiles Destroyed 23 | . . 3 . . 10 7 2 1 Melee 1 | . . . . . . . . 1 Guns 5 | . . 1 . . . 4 . . Cannons 10 | . . . . . 9 1 . . AOE 4 | . . 2 . . . 1 1 . Classes Destroyed 12 | . 3 2 . . 4 3 . . Worker 2 | . 2 . . . . . . . Builder 1 | . . . . . 1 . . . Recycler 1 | . 1 . . . . . . . Watcher 3 | . 2 . . . 1 . . . Swarmer 4 | . . . . . . 4 . . Grunt 2 | . . . . . . 2 . . Duelist 1 | . . . . . . 1 . . Sentry 7 | . . . . . 7 . . . Hunter 4 | . . . . . 1 . 2 1 Programmer 2 | . . . . . 2 . . . Artisan 1 | . . 1 . . . . . . Subdweller 3 | . . 3 . . . . . . Best Kill Streak 3 | . 2 2 . . 2 3 2 1 Combat Bots Only 3 | . . 2 . . 2 3 2 1 Max Kills in Single Turn 1 | . 1 1 . . 1 1 1 1 Gunslinging . | . . . . . . . . . Exploded 1 | . . 1 . . . 1 1 . Melee 1 | . . . . . . . . 1 Uniques/NPCs Destroyed . | . . . . . . . . . Combat | -11 -10 -10 -9 -6 -5 -5 -5 -4 -------- Run | Yrd Mat Sub Scr Fac Fac Upp Upp Fac Hostile Shots Fired 539 | . . 11 . . 99 120 30 279 Missed 178 | . . 2 . . 28 29 12 107 Hits 361 | . . 9 . . 71 91 18 172 Melee 8 | . . . . . . 8 . . Projectile 353 | . . 9 . . 71 83 18 172 AOE 2 | . . . . . . . . 2 Critical Strikes 19 | . . 1 . . 4 5 1 8 Damage Taken 6502 | . 169 219 . . 1180 1867 394 2673 Core 1698 | . 23 34 . . 59 295 135 1152 Absorbed by Shields 470 | . . . . . 284 186 . . Regen/Repaired (Parts) 46 | . . . . . . . . 46 Core Remaining (%) 82 | 100 . . 77 100 . . 51 . Volleys Fired 139 | . 13 11 . . 48 50 7 10 Largest 3 | . 2 2 . . 3 3 2 3 Hottest 246 | . 80 112 . . 230 246 127 208 Shots Fired 341 | . 26 20 . . 133 127 13 22 Gun 87 | . 26 12 . . . 32 7 10 Cannon 234 | . . . . . 128 94 . 12 Launcher 15 | . . 8 . . . 1 6 . Special 5 | . . . . . 5 . . . Kinetic 9 | . 4 . . . . . . 5 Thermal 317 | . 22 12 . . 133 126 7 17 Explosive 8 | . . 8 . . . . . . Electromagnetic 7 | . . . . . . 1 6 . Robot Hit Streak 12 | . 3 7 . . 12 12 3 4 Robot Miss Streak 5 | . 2 2 . . 4 5 2 3 Penetration Max . | . . . . . . . . . Secondary Targets . | . . . . . . . . . Shots Hit Robots 142 | . 8 11 . . 75 29 8 11 Core Hits 57 | . 7 6 . . 28 9 3 4 Critical Kills 1 | . . . . . . 1 . . Critical Parts Destroyed . | . . . . . . . . . Critical Strikes 3 | . . . . . . 3 . . Burn 2 | . . . . . . 2 . . Meltdown 1 | . . . . . . 1 . . Melee Attacks . | . . . . . . . . . Impact . | . . . . . . . . . Slashing . | . . . . . . . . . Piercing . | . . . . . . . . . Sneak Attacks . | . . . . . . . . . Combat Hostiles . | . . . . . . . . . Follow-up Attacks . | . . . . . . . . . Damage Inflicted 4237 | . 207 506 . . 2079 826 348 271 Guns 672 | . 91 86 . . . 284 142 69 Cannons 2669 | . . . . . 2036 458 . 175 Explosions 818 | . 113 420 . . . 79 206 . Melee . | . . . . . . . . . Ramming 78 | . 3 . . . 43 5 . 27 Kinetic 90 | . 15 . . . . . . 75 Thermal 3251 | . 76 86 . . 2036 742 142 169 Explosive 533 | . 113 420 . . . . . . Electromagnetic 285 | . . . . . . 79 206 . Impact . | . . . . . . . . . Slashing . | . . . . . . . . . Piercing . | . . . . . . . . . Highest Corruption 65 | . . . . . 5 27 65 12 Average Corruption 18 | . . . . . 3 16 49 5 Corruption Purged . | . . . . . . . . . Corruption Blocked . | . . . . . . . . . Effects 179 | . . . . . 17 123 37 2 Message Errors 43 | . . . . . 3 31 7 2 Matter Fused 40 | . . . . . 3 31 6 . Heat Flow Errors 29 | . . . . . 2 18 9 . Energy Discharges 17 | . . . . . 2 13 2 . Parts Fused 1 | . . . . . . 1 . . Data Loss (minor) 21 | . . . . . 3 12 6 . Data Loss (major) 9 | . . . . . 1 4 4 . Misfires 4 | . . . . . 1 2 1 . Alerts 7 | . . . . . . 7 . . Misdirections 1 | . . . . . . 1 . . Weapon Failures 7 | . . . . . 2 3 2 . Overload Shots . | . . . . . . . . . Overflow Damage 118 | . 71 . . . 44 3 . . Projectiles 43 | . . . . . 43 . . . Explosions 74 | . 71 . . . . 3 . . Melee 1 | . . . . . 1 . . . Knockbacks 2 | . . . . . . . . 2 Impact . | . . . . . . . . . Kinetic 2 | . . . . . . . . 2 Secondary . | . . . . . . . . . Self-Inflicted Damage 221 | . 170 . . . . . 46 5 Shots 4 | . 2 . . . . . 2 . Rammed 11 | . . . . . 2 . . 9 Targets Rammed 15 | . 1 . . . 2 2 . 10 Kicked 3 | . 1 . . . . 2 . . Crushed 1 | . . . . . . . . 1 Highest Temperature 698 | . 54 307 . . 427 438 292 698 Average Temperature 133 | . 20 169 . . 123 130 101 307 Received Heat Transfer 698 | . . 327 . . 105 257 . 9 Effects 28 | . . . . . 5 3 1 19 Shutdowns 8 | . . . . . 1 2 . 5 Energy Bleed 5 | . . . . . 2 1 1 1 Interference 7 | . . . . . 2 . . 5 Matter Decay 1 | . . . . . . . . 1 Damage (major) 7 | . . . . . . . . 7 Siege Activations . | . . . . . . . . . Martial Activations . | . . . . . . . . . Shielding Activations . | . . . . . . . . . Robots Disrupted . | . . . . . . . . . Combat Hostiles . | . . . . . . . . . Robots Corrupted 1 | . . . . . . . 1 . Combat Hostiles 1 | . . . . . . . 1 . Parts Fried 3 | . . . . . 2 . 1 . Impact Corruptions 1 | . . . . . 1 . . . Robots Melted 2 | . . . . . 1 1 . . Combat Hostiles 2 | . . . . . 1 1 . . Parts Melted 22 | . . . . . 17 5 . . Heat Transferred 5344 | . 175 222 . . 3076 1338 222 311 Parts Sabotaged . | . . . . . . . . . Parts Stolen . | . . . . . . . . . Parts Stripped . | . . . . . . . . . Power Chain Reactions . | . . . . . . . . . Alert | -11 -10 -10 -9 -6 -5 -5 -5 -4 ------- Run | Yrd Mat Sub Scr Fac Fac Upp Upp Fac Maximum Alert Level . | . . . . . . . . . Low Security (%) 100 | 100 100 . . 100 100 . . 100 Level 1 . | . . . . . . . . . Level 2 . | . . . . . . . . . Level 3 . | . . . . . . . . . Level 4 . | . . . . . . . . . Level 5 . | . . . . . . . . . High Security . | . . . . . . . . . Max Security . | . . . . . . . . . Peak Influence 118 | . 63 . . . 118 . . 20 Initial . | . . . . . . . . . Average 18 | . 8 . . . 42 . . . Influence Increases 739 | . 97 . . . 362 180 50 50 Destroy 0b10 Robot/C 400 | . . . . . 200 140 40 20 Destroy 0b10 Robot/NC 35 | . 25 . . . 10 . . . Destroy Leader 86 | . 4 . . . 62 10 10 . Successful Hack 9 | . . . . . . . . 9 Disable Machine 90 | . 30 . . . 45 . . 15 Destroy Structure 74 | . 38 . . . 30 . . 6 Lose Combat Pursuer 45 | . . . . . 15 30 . . Influence Decreases 739 | . 97 . . . 342 180 70 50 Entered New Map 12 | . . . . . . 8 4 . Time Decay 575 | . 87 . . . 312 84 60 32 Lost Part 152 | . 10 . . . 30 88 6 18 Squads Dispatched 10 | . . . . . 7 . . 3 Investigation 3 | . . . . . 1 . . 2 Extermination 3 | . . . . . 2 . . 1 Reinforcement 1 | . . . . . 1 . . . Assault . | . . . . . . . . . Garrison 3 | . . . . . 3 . . . Intercept . | . . . . . . . . . Searches Triggered . | . . . . . . . . . Construction Impeded 1 | . . . . . 1 . . . Haulers Reinforced . | . . . . . . . . . Active Scanning Responses . | . . . . . . . . . Cargo Convoy Interrupts 1 | . . . . . 1 . . . Stealth | -11 -10 -10 -9 -6 -5 -5 -5 -4 --------- Run | Yrd Mat Sub Scr Fac Fac Upp Upp Fac Distress Signals . | . . . . . . . . . Communications Jammed . | . . . . . . . . . Distress Signals . | . . . . . . . . . Times Spotted 40 | . 6 4 . . 12 9 2 7 Peak Tracking Total 5 | . 2 2 . . 3 5 2 4 Tactical Retreats 2 | . . . . . 1 1 . . Traps | -11 -10 -10 -9 -6 -5 -5 -5 -4 ------- Run | Yrd Mat Sub Scr Fac Fac Upp Upp Fac Traps Triggered 3 | . . 1 . . 1 . . 1 Indirectly . | . . . . . . . . . Trap Hack Attempts . | . . . . . . . . . Triggered . | . . . . . . . . . Disarmed 6 | . . . . . . . . 6 Reprogrammed . | . . . . . . . . . Reused . | . . . . . . . . . Traps Extracted . | . . . . . . . . . Installed . | . . . . . . . . . Triggered . | . . . . . . . . . Machines | -11 -10 -10 -9 -6 -5 -5 -5 -4 ---------- Run | Yrd Mat Sub Scr Fac Fac Upp Upp Fac Machines Disabled 6 | . 2 . . . 3 . . 1 Max in Single Turn 2 | . 2 . . . 1 . . 1 Machines Repaired . | . . . . . . . . . Machines Dismantled . | . . . . . . . . . Machines Sabotaged . | . . . . . . . . . Overloaded Fab Kills . | . . . . . . . . . Hacking | -11 -10 -10 -9 -6 -5 -5 -5 -4 --------- Run | Yrd Mat Sub Scr Fac Fac Upp Upp Fac Machines Accessed 9 | . . 1 2 1 2 . . 3 Terminals 3 | . . . . . 1 . . 2 Fabricators 1 | . . . . . 1 . . . Repair Stations 1 | . . . . . . . . 1 Recycling Units 1 | . . . . 1 . . . . Scanalyzers . | . . . . . . . . . Garrison Access . | . . . . . . . . . Total Hacks 37 | . . 4 17 1 4 . . 11 Successful 33 | . . 4 17 1 2 . . 9 Failed 4 | . . . . . 2 . . 2 Catastrophic . | . . . . . . . . . Database Lockouts . | . . . . . . . . . Manual 1 | . . . . . 1 . . . Terminals 10 | . . . . . 3 . . 7 Fabricators 1 | . . . . . 1 . . . Repair Stations 4 | . . . . . . . . 4 Recycling Units 1 | . . . . 1 . . . . Scanalyzers . | . . . . . . . . . Garrison Access . | . . . . . . . . . Terminal Hacks 28 | . . 4 17 . 1 . . 6 Record 24 | . . 4 17 . . . . 3 Locate Traps 1 | . . . . . . . . 1 Disarm Traps 1 | . . . . . . . . 1 Dispatch Records 1 | . . . . . 1 . . . Reinforcement Status 1 | . . . . . . . . 1 Fabricator Hacks 1 | . . . . . 1 . . . Network Status 1 | . . . . . 1 . . . Repair Station Hacks 3 | . . . . . . . . 3 Scan Component 2 | . . . . . . . . 2 Repair 1 | . . . . . . . . 1 Recycling Unit Hacks 1 | . . . . 1 . . . . Report Inventory 1 | . . . . 1 . . . . Scanalyzer . | . . . . . . . . . Garrison Access Hacks . | . . . . . . . . . Unauthorized Hacks . | . . . . . . . . . Terminals . | . . . . . . . . . Fabricators . | . . . . . . . . . Repair Stations . | . . . . . . . . . Recycling Units . | . . . . . . . . . Scanalyzers . | . . . . . . . . . Garrison Access . | . . . . . . . . . Data Cores Recovered 1 | . 1 . . . . . . . Used . | . . . . . . . . . Hacking Detections 4 | . . . . . 1 . . 3 Full Trace Events 3 | . . . . . 1 . . 2 Feedback Events . | . . . . . . . . . Feedback Blocked . | . . . . . . . . . Robot Schematics Acquired . | . . . . . . . . . Robots Built . | . . . . . . . . . Authchips . | . . . . . . . . . Time . | . . . . . . . . . Total Robot Build Rating . | . . . . . . . . . Part Schematics Acquired . | . . . . . . . . . Parts Built . | . . . . . . . . . Authchips . | . . . . . . . . . Time . | . . . . . . . . . Total Part Build Rating . | . . . . . . . . . Part Studies Acquired . | . . . . . . . . . Parts Repaired 1 | . . . . . . . . 1 Time 56 | . . . . . . . . 56 Parts Recycled . | . . . . . . . . . Recycled Matter . | . . . . . . . . . Retrieved Matter . | . . . . . . . . . Retrieved Components . | . . . . . . . . . Parts Scanalyzed . | . . . . . . . . . Part Schematics Acquired . | . . . . . . . . . Parts Damaged . | . . . . . . . . . Bothacking | -11 -10 -10 -9 -6 -5 -5 -5 -4 ------------ Run | Yrd Mat Sub Scr Fac Fac Upp Upp Fac Used RIF Installer . | . . . . . . . . . Robots Hacked . | . . . . . . . . . Non-combat . | . . . . . . . . . Combat . | . . . . . . . . . Robot Hacks Applied . | . . . . . . . . . Relay Couplers Released . | . . . . . . . . . Fabnet Peak Effective % . | . . . . . . . . . Robots Rewired . | . . . . . . . . . Allies Hacked . | . . . . . . . . . Hacks Repelled . | . . . . . . . . . Allies | -11 -10 -10 -9 -6 -5 -5 -5 -4 -------- Run | Yrd Mat Sub Scr Fac Fac Upp Upp Fac Total Allies . | . . . . . . . . . Largest Group . | . . . . . . . . . Highest-Rated Group . | . . . . . . . . . Highest-Rated Ally . | . . . . . . . . . Total Orders . | . . . . . . . . . Ally Attacks . | . . . . . . . . . Total Damage . | . . . . . . . . . Kills . | . . . . . . . . . Allies Corrupted . | . . . . . . . . . Allies Melted . | . . . . . . . . . Intel | -11 -10 -10 -9 -6 -5 -5 -5 -4 ------- Run | Yrd Mat Sub Scr Fac Fac Upp Upp Fac Active Infowar (turns) 4042 | . . 348 8 220 850 2117 85 414 Optics 356 | . . 348 8 . . . . . Sensors 2872 | . . . . . 697 2117 . 58 Terrain 432 | . . . . . . . 85 347 Jamming 373 | . . . . 220 153 . . . ECM 12 | . . . . . . . . 12 Robot Analysis Total . | . . . . . . . . . Derelict Logs Recovered 1 | . . . . . . 1 . . Drone Launches . | . . . . . . . . . Drone Recoveries . | . . . . . . . . . Exploration | -11 -10 -10 -9 -6 -5 -5 -5 -4 ------------- Run | Yrd Mat Sub Scr Fac Fac Upp Upp Fac Turns Passed 8193 | 99 545 502 1365 406 1107 2866 656 647 Spaces Moved 4245 | 81 324 323 903 323 424 954 463 450 Core 139 | 10 . . . . . 4 . 125 Treads 849 | . . . . . 190 616 . 43 Legs 2982 | 71 324 323 903 323 234 207 315 282 Wheels . | . . . . . . . . . Hover . | . . . . . . . . . Flight 275 | . . . . . . 127 148 . Fastest Speed 50 | 50 120 120 120 120 120 189 109 50 Average Speed 168 | 111 120 120 149 120 187 277 133 108 Slowest Speed 435 | 120 120 120 190 120 240 435 432 200 Overloaded Moves . | . . . . . . . . . Propulsion Burnouts . | . . . . . . . . . Robots Hopped . | . . . . . . . . . Potential Cave-ins 15 | . . . . . . 15 . . Cave-ins Triggered 2 | . . . . . . 2 . . Exploration Rate (%) 27 | 6 27 15 58 6 5 78 42 6 Regions Visited 8 Branch Regions 4 Pre-discovered Areas . | . . . . . . . . . Known Exits Taken 1 | . . . . . 1 . . . Unknown Exits Taken 7 | 1 1 1 1 1 . 1 1 . Scrap Searched 13 | . . 1 8 . . 2 2 . Spaces Dug 64 | . . . . . 7 57 . . Terrain Destroyed 186 | . 43 58 . . 15 68 . 2 Melee . | . . . . . . . . . Projectile 85 | . . . . . 15 68 . 2 AOE 101 | . 43 58 . . . . . . Terrain Rammed . | . . . . . . . . . Walls Destroyed . | . . . . . . . . . Machines Disabled . | . . . . . . . . . Actions | -11 -10 -10 -9 -6 -5 -5 -5 -4 --------- Run | Yrd Mat Sub Scr Fac Fac Upp Upp Fac Total 4990 | 87 453 415 926 341 629 1070 483 586 Wait 443 | . 103 78 2 7 113 42 . 98 Move 4235 | 80 323 322 902 322 423 951 462 450 Hop . | . . . . . . . . . Pick Up 40 | 1 5 1 5 6 12 6 1 3 Fast Attach 38 | 6 1 1 3 1 5 7 7 7 Attach 26 | . 1 . . 5 4 7 3 6 Detach 3 | . 1 . 1 . . 1 . . Swap 18 | . 3 2 1 . 9 1 1 1 Drop 25 | . 2 . 9 . 13 . . 1 Fire 139 | . 13 11 . . 48 50 7 10 Melee . | . . . . . . . . . Ram 3 | . . . . . . 1 . 2 Kick 3 | . 1 . . . . 2 . . Crush 10 | . . . . . 2 . . 8 Escape Stasis 2 | . . . . . . 2 . . Rewire 5 | . . . 3 . . . 2 . Trap . | . . . . . . . . . Miscellaneous . | . . . . . . . . . Route ------- -11/Scrapyard -10/Materials (discovered 2 exits: [*Min] / *Sub) -10/Subcaves (discovered 2 exits: [*Mat] / *Scr) -9/Scraptown -6/Factory -5/Factory -5/Upper Caves -5/Upper Caves -4/Factory History --------- Turn | Location | Event 6 | -11/Scrapyard | Discovered new exit (range 16) 100 | -11/Scrapyard | Entered Materials 101 | -10/Materials | Met a group of wandering Federalists 310 | -10/Materials | Build established: Mutant 344 | -10/Materials | Discovered new exit (range 13) 599 | -10/Materials | Discovered new exit (range 9) 645 | -10/Materials | Entered Subcaves 646 | -10/Subcaves | Continued accompanying wandering Federalists (5) 646 | -10/Subcaves | Approached by a straggling Scientist 740 | -10/Subcaves | A swath of the cavern ceiling suddenly collapsed 800 | -10/Subcaves | Lost 3 allies 867 | -10/Subcaves | Visited Clippyterm 870 | -10/Subcaves | Learned Research machine intel 970 | -10/Subcaves | Discovered new exit (range 7) 1033 | -10/Subcaves | Ambushed by angry Subdweller bent on revenge 1036 | -10/Subcaves | Ambushed by Subdweller buried in earth 1062 | -10/Subcaves | A swath of the cavern ceiling suddenly collapsed 1147 | -10/Subcaves | Entered Scraptown 1355 | -9/Scraptown | Heard Great Nut preacher, LISTEN AND RECITE! 1356 | -9/Scraptown | Visited Scrapoid Research Area 1413 | -9/Scraptown | Visited Bundlers 1532 | -9/Scraptown | Visited Comm Corps 1608 | -9/Scraptown | Visited Red Mages 1677 | -9/Scraptown | Visited Cave Peace 1721 | -9/Scraptown | Visited Fellowship of the Rings 1765 | -9/Scraptown | Visited UFD Registry 1785 | -9/Scraptown | Visited Supply Room 2408 | -9/Scraptown | Discovered new exit (range 5) 2512 | -9/Scraptown | Entered Factory 2512 | -6/Factory | Evolved 8 slots: Power x1, Propulsion x2, Utility x5 2870 | -6/Factory | Discovered new exit (range 11) 2918 | -6/Factory | Entered another Factory area 2918 | -5/Factory | Evolved 2 slots: Propulsion x1, Weapon x1 3292 | -5/Factory | Garrison activated, responded to threat 3473 | -5/Factory | Build established: Hacker-Skirmisher 3929 | -5/Factory | Discovered new exit (range 11) 3957 | -5/Factory | Identified exit to Upper Caves 3962 | -5/Factory | Cargo convoy interrupted 4025 | -5/Factory | Entered Upper Caves 4194 | -5/Upper Caves | Crushed by falling debris 4195 | -5/Upper Caves | System corruption reached 10% 4487 | -5/Upper Caves | Build established: Scavenger-Skirmisher 5321 | -5/Upper Caves | Learned 4 Factory zone layouts 5939 | -5/Upper Caves | Found DCF Scrap (11 items) 6015 | -5/Upper Caves | Crushed by falling debris 6046 | -5/Upper Caves | Lost 3 parts (2n1u) 6173 | -5/Upper Caves | Lost 6 parts (2p1n3u) 6471 | -5/Upper Caves | Build established: Tank 6607 | -5/Upper Caves | Lost 7 parts (1p2n1u3w) 6875 | -5/Upper Caves | Discovered new exit (range 3) 6891 | -5/Upper Caves | Entered another Upper Caves area 6946 | -5/Upper Caves | Build established: Scavenger-Mutant 7099 | -5/Upper Caves | Lost 3 parts (1n2u) 7153 | -5/Upper Caves | System corruption reached 30% 7530 | -5/Upper Caves | Discovered new exit (range 12) 7547 | -5/Upper Caves | Entered Factory 7547 | -4/Factory | Evolved 2 slots: Power x1, Utility x1 7741 | -4/Factory | Repaired Neutrino Core 7977 | -4/Factory | Lost 11 parts (2p2n3u4w) 8055 | -4/Factory | Lost 5 parts (2n2u1w) 8113 | -4/Factory | Released all parts (4) 8122 | -4/Factory | Core integrity fell below 50% 8135 | -4/Factory | Lost 6 parts (3n3u) 8181 | -4/Factory | Core integrity fell below 20% 8181 | -4/Factory | System corruption reached 10% 8194 | -4/Factory | Destroyed by P-70 Sage with Tesla Rifle Last Messages --------------- 08113_ Released Adv. Terrain Scan Processor. 08113_ Released Core Analyzer. 08113_ Released Matter Compressor. [Achievement: Live, Flee, And Rebuild] 08154_ Neutrino Reactor explodes. 08156_ NLL H W3|=QK6KWLVMXJ7>VNGD867WRHV&UBI>T= 08158_ P-70 Sage resets P-70 Sage, system corruption cleaned. 08164_ Slammed into P-70 Sage. 08164_ Destabilizing: Core damaged (-46). 08165_ Slammed into P-70 Sage. 08166_ Neutrino Reactor explodes. 08172_ U-05 Engineer lays Concrete. 08174_ Acquired Imp. Fusion Compressor. 08174_ Pressure Siphon disabled. 08179_ U-05 Engineer lays Concrete. 08180_ P-70 Sage resets P-70 Sage, system corruption cleaned. 08189_ Triggered Tesla Bomb Trap. 08189_ A bubble of electromagnetic force engulfs the area. 08189_ Pressure Siphon disabled. 08191_ Imp. Fusion Compressor destroyed. Map ----- +----------------------------------------------------+ | ?????????????????????????????????????????????????? | | ?????????????????????????????????????????????????? | | ?????????????????????????????????????????????????? | | ?????????????????????????????????????????????????? | | ?????????????????????????????????????????????????? | | ?????????????????????????????????????????????????? | | ?????????????????????????????????????????????????? | | ?????????????????????????????????????????????????? | | ?????????????????????????????????????????????????? | | ?????????????????????????????????????????????????? | | ?????????????????????????????????????????????????? | | ?????????????????????????????????????????????????? | | ?????????????????????????????????????????????????? | | ?????????????????????????????????????????????????? | | ?????????????????????????????????????????????????? | | #?##?????????????????????????????????????????????? | | ?????????????????????###?????????????????????????? | | ????????????????????? ?????????????????????????? | | ?#??????????????????""" ?????????????? ??????????? | | ?????????????????????"" ????????###### ??????????? | | ?#???????????????????"" ?????? ??????????? | | ##########????????????" ????? R #?????????? | | # #########????? ???? #?????????? | | # # #######;### #?????????? | | # # #?????????? | | # # @ #?????????? | | # / / """%% w ????????? | | # # """% #?????????? | | # #!!! """" ^ #?????????? | | # ! #!!! p ############# #?????????? | | # #!! **! p #?? ? ? ???# #?????????? | | ########## !! p # ???? ? ?#?# #?????????? | | *! + ??? ### ####??????? | | ############# #? ? #?# ##?####???? | | " """% ############# ###?###??#?## ####?## ??? | | " """" #### + #?#?#########+#???##? ""? | | " """" #### """" ## ##### #?#??## ? | | #### """" !## ##### """"""" #####?# ?"" | | #### """" ## # """Y""" ####### """ | | #########+#### """" ## # #######?""? | | #?## # """" + / """ # # | | ?### ? ? ?# """" ## # """ #######? | | #### # """" ## # """ ####?##? | | #### ?# ## # #######? | | ##################+##### ###+################# | | """ """ # | | """ """ # | | """ """ # | | + | | # | +----------------------------------------------------+ Best States ------------- Heat Dissipation 62 Coolant Potential 65 Energy Generation 39 Energy Capacity 565 Matter Stores 550 Matter Capacity 550 Sight Range 21 Robot Scan Range 16 Terrain Scan Range 20 Terrain Scan Density 210 ECM Strength 2 Jamming Range 12 Power Amplification 20 Armor Coverage 150 Resistance: EM 25 Evasion (%) 63 Targeting Accuracy 5 Core Analysis 6 Recoil Reduction 3 Offensive Hacking 12 Defensive Hacking 12 Item Schematics ----------------- None Robot Schematics ------------------ None Fabricated ------------ Nothing Repaired ---------- Neutrino Core | 51% | -4/Factory Studied --------- None Alien Tech Used ----------------- None Achievements -------------- Civilization 2243 Do Not Disturb Live, Flee, And Rebuild Strength In Numbers Unlikely Earthworm Z1$+NX3F=JRE3_ZNQR Challenges ------------ None Game ------ Seed HugeAntimissileDirector Manual? 0 Play Time 01:14:36 Cumulative 24.4 hours Start 2026.01.24 @ 04:14:38 End 2026.01.24 @ 23:11:39 Sessions 3 Manual Loads 0 Difficulty Rogue Special Mode None Game No. 26 Rogue 26 Adventurer 0 Explorer 0 Win Type - Total 0 Types 0/0/0/0/0/0/0/0/0/0 Lore% 11 Gallery% 22 Achievement% 18 Wizard Run 0 Options --------- Layout 0 ASCII 0 Keyboard 1 Movement Numpad Keybinds 0 Fullscreen 1 Font 24/Crisp Map View 76x50 Zoom Use 0% Tactical HUD 1 Map Filters NONE Filters NONE Steam 1 RUN: 4f1af016-2542-4ec3-92f9-90a33f164820